fUSD/lending_fUSD_20260412
["ID","MTS","AMOUNT","RATE_DAILY","PERIOD"]
[420296793,1775926232285,-4898.86098061,9.417e-05,2]
[420296794,1775926232302,-250.0,9.417e-05,2]
[420296795,1775926232313,-449.41,9.588e-05,2]
[420296796,1775926232322,-449.41,9.931e-05,2]
[420296798,1775926232332,-200.0,0.0001,2]
[420296800,1775926232352,-151.0,0.0001,2]
[420296802,1775926232362,-150.0,0.000102,2]
[420296804,1775926232372,-449.41,0.00010273,2]
[420296806,1775926232387,-928.0,0.00010357,2]
[420296808,1775926232399,-420.0,0.00010358,2]
[420296810,1775926232409,-200.0,0.00010548,2]
[420296812,1775926232423,-179.91669866,0.00010561,2]
[420296814,1775926232442,-449.41,0.00010616,2]
[420296816,1775926232451,-449.41,0.00010958,2]
[420296819,1775926232463,-200.0,0.00011096,2]
[420296822,1775926232481,-3578.12,0.00011281,2]
[420296824,1775926232490,-449.41,0.00011301,2]
[420296826,1775926232504,-150.0,0.00011392,2]
[420296828,1775926232521,-587.0,0.00011394,2]
[420296830,1775926232530,-7488.14644872,0.00011422,2]
[420296832,1775926232557,-2083.9,0.00011422,2]
[420296834,1775926232572,-174.796,0.00011422,2]
[420296836,1775926232587,-171.6937,0.000115,2]
[420296838,1775926232609,-449.41,0.00011643,2]
[420296839,1775926232620,-150.0,0.00011765,2]
[420296841,1775926232634,-150.0,0.00011765,2]
[420296844,1775926232648,-150.0,0.00011765,2]
[420296845,1775926232663,-150.0,0.00011765,2]
[420296848,1775926232677,-150.0,0.00011765,2]
[420296850,1775926232686,-157.59179605,0.00011765,2]
[420296851,1775926232699,-1500.0,0.00011895,2]
[420296853,1775926232715,-449.41,0.00011985,2]
[420296855,1775926232730,-449.41,0.00012328,2]
[420296856,1775926232741,-255.0,0.00012451,2]
[420296857,1775926232754,-166.66,0.00012505,2]
[420296859,1775926232766,-506.50023244,0.00012531,2]
[420296861,1775926232779,-823.0,0.00012533,2]
[420296862,1775926232790,-2000.0,0.00012612,2]
[420296864,1775926232799,-449.41,0.0001267,2]
[420296866,1775926232811,-500.0,0.00012739,2]
[420296869,1775926232826,-500.0,0.00012739,2]
[420296870,1775926232835,-500.0,0.00012739,2]
[420296872,1775926232857,-500.0,0.00012739,2]
[420296874,1775926232868,-500.0,0.00012739,2]
[420296876,1775926232877,-174.02933512,0.00012739,2]
[420296879,1775926232898,-500.0,0.00012739,2]
[420296880,1775926232933,-500.0,0.00012739,2]
[420296882,1775926232959,-500.0,0.00012739,2]
[420296884,1775926232976,-500.0,0.00012739,2]
[420296886,1775926233007,-416.55077892,0.00012739,2]
[420296888,1775926233027,-500.0,0.00012739,2]
[420296890,1775926233045,-500.0,0.00012739,2]
[420296892,1775926233066,-500.0,0.00012739,2]
[420296894,1775926233076,-150.0,0.00012739,2]
[420296895,1775926233097,-500.0,0.00012739,2]
[420296897,1775926233122,-150.0,0.00012739,2]
[420296899,1775926233133,-500.0,0.00012739,2]
[420296901,1775926233144,-223.44111523,0.00012739,2]
[420296903,1775926233158,-500.0,0.00012739,2]
[420296905,1775926233168,-500.0,0.00012739,2]
[420296907,1775926233178,-500.0,0.00012739,2]
[420296908,1775926233187,-500.0,0.00012739,2]
[420296910,1775926233204,-500.0,0.00012739,2]
[420296912,1775926233213,-500.0,0.00012739,2]
[420296914,1775926233223,-500.0,0.00012739,2]
[420296916,1775926233233,-500.0,0.0001285,2]
[420296917,1775926233252,-196.5249,0.000129,2]
[420296919,1775926233263,-449.41,0.00013013,2]
[420296921,1775926233272,-578.20924308,0.00013064,2]
[420296923,1775926233310,-531.26575347,0.00013064,2]
[420296925,1775926233322,-200.0,0.00013064,2]
[420296927,1775926233338,-1328.27659266,0.00013064,2]
[420296928,1775926233350,-500.0,0.00013064,2]
[420296930,1775926233360,-500.0,0.00013064,2]
[420296932,1775926233369,-500.0,0.00013064,2]
[420296934,1775926233386,-500.0,0.00013064,2]
[420296936,1775926233401,-500.0,0.00013064,2]
[420296938,1775926233417,-743.50770149,0.00013064,2]
[420296940,1775926233426,-500.0,0.00013064,2]
[420296941,1775926233436,-500.0,0.00013064,2]
[420296943,1775926233455,-500.0,0.00013064,2]
[420296945,1775926233478,-500.0,0.00013064,2]
[420296947,1775926233491,-500.0,0.00013064,2]
[420296949,1775926233506,-151.0,0.00013064,2]
[420296951,1775926233539,-500.0,0.00013064,2]
[420296952,1775926233558,-500.0,0.00013064,2]
[420296954,1775926233580,-500.0,0.00013064,2]
[420296956,1775926233595,-500.0,0.00013064,2]
[420296958,1775926233619,-174.61919141,0.00013064,2]
[420296960,1775926233633,-279.9045709,0.00013064,2]
[420296962,1775926233664,-500.0,0.00013068,2]
[420296964,1775926233697,-628.74,0.00013115,2]
[420296966,1775926233711,-150.0,0.00013119,2]
[420296968,1775926233742,-500.0,0.00013119,2]
[420296970,1775926233754,-151.0,0.00013119,2]
[420296972,1775926233798,-500.0,0.00013174,2]
[420296974,1775926233809,-151.0,0.00013174,2]
[420296976,1775926233817,-166.66,0.00013193,2]
[420296978,1775926233832,-500.0,0.00013229,2]
[420296979,1775926233845,-151.0,0.00013229,2]
[420296980,1775926233859,-151.0,0.00013284,2]
[420296981,1775926233868,-151.0,0.00013339,2]
[420296982,1775926233882,-1053.6,0.0001335,2]
[420296983,1775926233892,-150.0,0.00013367,2]
[420296984,1775926233908,-219.0,0.00013367,2]
[420296985,1775926233921,-151.0,0.00013394,2]
[420296986,1775926233930,-500.0,0.00013425,2]
[420296987,1775926233948,-151.0,0.00013449,2]
[420296988,1775926233958,-151.0,0.00013504,2]
[420296989,1775926233968,-151.0,0.00013559,2]
[420296990,1775926233980,-500.0,0.00013575,2]
[420296991,1775926233991,-500.0,0.00013575,2]
[420296992,1775926234002,-500.0,0.00013575,2]
[420296994,1775926234012,-223.96612989,0.00013575,2]
[420296995,1775926234023,-159.984,0.00013575,2]
[420296997,1775926234039,-500.0,0.00013575,2]
[420296999,1775926234049,-500.0,0.00013575,2]
[420297001,1775926234064,-200.0,0.00013612,2]
[420297002,1775926234076,-1015.95114918,0.00013612,2]
[420297004,1775926234086,-771.01748645,0.00013612,2]
[420297006,1775926234095,-181.08010149,0.00013612,2]
[420297009,1775926234111,-290.26104003,0.00013612,2]
[420297010,1775926234120,-150.0,0.00013613,2]
[420297012,1775926234130,-500.0,0.00013641,2]
[420297014,1775926234153,-500.0,0.00013641,2]
[420297016,1775926234163,-500.0,0.00013641,2]
[420297019,1775926234173,-500.0,0.00013641,2]
[420297021,1775926234187,-500.0,0.00013641,2]
[420297023,1775926234199,-500.0,0.00013641,2]
[420297025,1775926234209,-500.0,0.00013641,2]
[420297027,1775926234218,-500.0,0.00013641,2]
[420297029,1775926234238,-500.0,0.00013641,2]
[420297031,1775926234248,-500.0,0.00013641,2]
[420297033,1775926234257,-500.0,0.00013641,2]
[420297035,1775926234269,-500.0,0.00013641,2]
[420297037,1775926234282,-500.0,0.00013641,2]
[420297039,1775926234298,-112.08208894,0.00013641,2]
[420297041,1775926234312,-405.91791106,0.00013641,2]
[420297043,1775926234322,-1158.70630483,0.00013673,2]
[420297063,1775926239007,-2923.53871068,0.00013673,2]
[420297064,1775926239042,-4209.8338372,0.00013673,2]
[420297065,1775926239052,-158.6548096,0.00013695,2]
[420297066,1775926239063,-500.0,0.00013698,2]
[420297067,1775926239075,-210.97870763,0.00013698,2]
[420297068,1775926239094,-166.66,0.00013699,2]
[420297069,1775926239104,-790.26,0.00013699,2]
[420297070,1775926239120,-636.0,0.00013786,2]
[420297071,1775926239139,-166.66,0.00013845,2]
[420297072,1775926239164,-166.66,0.00013881,2]
[420297073,1775926239175,-864.65573411,0.00013935,2]
[420297074,1775926239600,-166.66,0.00013991,2]
[420297075,1775926239690,-900.0,0.00014,2]
[420297076,1775926239706,-1000.0,0.00014,2]
[420297077,1775926239730,-313.0,0.00014,2]
[420297078,1775926239745,-3525.0,0.00014035,2]
[420297079,1775926239755,-1047.0,0.00014035,2]
[420297080,1775926239794,-1347.0,0.00014035,2]
[420297081,1775926239810,-164.022,0.00014035,2]
[420297082,1775926239853,-622.0,0.00014035,2]
[420297083,1775926239868,-150.0,0.00014035,2]
[420297084,1775926239887,-1264.0,0.00014035,2]
[420297085,1775926239912,-150.0,0.00014035,2]
[420297086,1775926239938,-150.0,0.00014035,2]
[420297087,1775926239980,-250.0,0.00014035,2]
[420297088,1775926240007,-416.0,0.00014035,2]
[420297089,1775926240031,-545.88258757,0.00014035,2]
[420297093,1775926240919,-363.98,0.00014035,2]
[420297100,1775926241162,-628.23801601,0.00014035,2]
[420297101,1775926241190,-815.91901641,0.00014035,2]
[420297102,1775926241257,-1419.98038001,0.00014035,2]
[420297103,1775926241273,-1001.68953804,0.00014123,2]
[420297104,1775926241284,-166.66,0.00014138,2]
[420297105,1775926241298,-200.0,0.0001416,2]
[420297106,1775926241313,-207.88880151,0.0001416,2]
[420297107,1775926241324,-2000.0,0.00014188,2]
[420297108,1775926241339,-224.9474,0.000142,2]
[420297109,1775926241358,-166.66,0.00014284,2]
[420297110,1775926241368,-316.69349791,0.00014332,2]
[420297111,1775926241384,-200.0,0.00014341,2]
[420297112,1775926241401,-790.26,0.00014384,2]
[420297113,1775926241413,-166.66,0.0001443,2]
[420297114,1775926241423,-166.66,0.00014569,2]
[420297115,1775926241447,-167.685275,0.000147,7]
[420297116,1775926241459,-405.428328,0.000147,7]
[420297117,1775926241469,-162.0,0.0001472,2]
[420297119,1775926241490,-321.67632658,0.00014753,2]
[420297120,1775926241500,-400.0,0.000148,5]
[420297121,1775926241512,-1418.9395018,0.00014853,2]
[420297122,1775926241541,-259.25882419,0.00014853,2]
[420297123,1775926241566,-762.85167401,0.00014853,2]
[420297124,1775926241577,-3032.16,0.00014853,2]
[420297125,1775926241588,-800.0,0.000149,5]
[420297126,1775926241602,-10529.44905759,0.0001492,2]
[420297127,1775926241613,-394.68575946,0.00014958,2]
[420297128,1775926241628,-14999.9999999,0.00015,2]
[420297129,1775926241651,-150.63554667,0.0001502,2]
[420297130,1775926241661,-150.0,0.00015049,2]
[420297131,1775926241672,-350.0,0.00015063,3]
[420297132,1775926241694,-790.26,0.00015068,2]
[420297133,1775926241704,-350.0,0.00015176,3]
[420297134,1775926241716,-10000.0,0.000152,2]
[420297135,1775926241736,-395.78907454,0.00015286,2]
[420297136,1775926241745,-1314.09780023,0.00015288,2]
[420297137,1775926241758,-2622.0,0.00015297,2]
[420297138,1775926241777,-155.0,0.0001536,5]
[420297139,1775926241788,-5057.22893452,0.0001536,2]
[420297140,1775926241800,-11714.14033179,0.0001536,2]
[420297141,1775926241826,-500.0,0.00015399,2]
[420297142,1775926241838,-251.41027403,0.00015399,2]
[420297143,1775926241859,-500.0,0.00015399,2]
[420297144,1775926241873,-263.8367573,0.00015399,2]
[420297145,1775926241883,-500.0,0.00015399,2]
[420297146,1775926241912,-152.08333411,0.00015399,2]
[420297147,1775926241943,-500.0,0.00015399,2]
[420297148,1775926241953,-500.0,0.00015399,2]
[420297149,1775926241986,-310.84867664,0.00015399,2]
[420297150,1775926241996,-500.0,0.00015399,2]
[420297151,1775926242012,-188.19444626,0.00015399,2]
[420297152,1775926242034,-500.0,0.00015399,2]
[420297153,1775926242058,-500.0,0.00015399,2]
[420297154,1775926242072,-500.0,0.00015399,2]
[420297155,1775926242098,-529.78,0.00015399,2]
[420297156,1775926242136,-22045.49229923,0.000154,2]
[420297185,1775926243053,-262.0142544,0.000154,2]
[420297194,1775926246468,-164.12,0.00013918,2]
[420297196,1775926246480,-157.64,0.00013918,2]
[420297197,1775926246491,-788.20408533,0.00014035,2]
[420297198,1775926314870,1500.0,0.00030137,120]
[420297200,1775926731214,2000.0,0.00030137,120]
[420297205,1775926780013,2000.0,0.00030137,120]
[420297207,1775926907031,5055.0,0.0003,120]
[420297212,1775927176185,828.36527467,0.0003,120]
[420297213,1775927352554,7110.55594,0.0003013,120]
[420297230,1775927432875,-1497.256948,0.00010047,2]
[420297231,1775927432885,-251.7236,0.00010098,2]
[420297232,1775927432895,-150.0,0.00010098,2]
[420297233,1775927432910,-250.0,0.00010122,2]
[420297234,1775927432922,-250.0,0.00010158,2]
[420297235,1775927432931,-200.0,0.00010198,2]
[420297236,1775927432941,-200.0,0.00010198,7]
[420297237,1775927432958,-200.0,0.00010198,7]
[420297238,1775927432969,-200.0,0.00010198,30]
[420297239,1775927432986,-191.23,0.00010198,7]
[420297240,1775927432999,-300.0,0.00010599,2]
[420297241,1775927433009,-300.0,0.00010599,2]
[420297242,1775927433028,-300.0,0.00010599,2]
[420297243,1775927433038,-1200.0,0.00010599,2]
[420297244,1775927433048,-5470.38646246,0.000106,2]
[420297245,1775927433122,-2625.23758415,0.000106,2]
[420297263,1775927438510,-267.79541215,0.00010158,2]
[420297264,1775927438520,-111.83825339,0.000106,2]
[420297265,1775927438530,-150.0,0.00010698,2]
[420297266,1775927438544,-500.0,0.00010699,2]
[420297267,1775927438554,-481.11833325,0.00010699,2]
[420297268,1775927438565,-500.0,0.00010699,2]
[420297269,1775927438577,-500.0,0.00010699,2]
[420297270,1775927438588,-500.0,0.00010699,2]
[420297271,1775927438598,-500.0,0.00010699,2]
[420297272,1775927438614,-500.0,0.00010699,2]
[420297273,1775927438625,-500.0,0.00010699,2]
[420297274,1775927438635,-500.0,0.00010699,2]
[420297275,1775927438646,-500.0,0.00010699,2]
[420297276,1775927438671,-500.0,0.00010699,2]
[420297277,1775927438685,-500.0,0.00010699,2]
[420297278,1775927438714,-500.0,0.00010699,2]
[420297279,1775927438736,-500.0,0.00010699,2]
[420297280,1775927438758,-500.0,0.00010699,2]
[420297281,1775927438775,-500.0,0.00010699,2]
[420297282,1775927438798,-500.0,0.00010699,2]
[420297283,1775927438817,-500.0,0.00010699,2]
[420297284,1775927438852,-500.0,0.00010699,2]
[420297285,1775927438898,-553.45759258,0.00010699,2]
[420297286,1775927438917,-500.0,0.00010699,2]
[420297287,1775927438941,-500.0,0.00010699,2]
[420297288,1775927438956,-500.0,0.00010699,2]
[420297289,1775927438980,-493.93571896,0.00010699,2]
[420297290,1775927438991,-176.59537517,0.00010699,2]
[420297291,1775927439001,-270.3844642,0.000107,2]
[420297292,1775927439023,-107765.75429105,0.000107,2]
[420297300,1775927440374,-456.64868835,0.000107,2]
[420297301,1775927440509,-30668.74154793,0.000107,2]
[420297302,1775927440547,-102.0151271,0.000107,2]
[420297303,1775927440557,-600.0,0.00011052,2]
[420297304,1775927440568,-321.46332497,0.00011052,2]
[420297321,1775927446582,-278.53667503,0.00011052,2]
[420297322,1775927446595,-743.99774708,0.00011052,2]
[420297323,1775927446612,-154.46361688,0.00011052,2]
[420297324,1775927446622,-300.0,0.00011052,2]
[420297325,1775927446634,-31.95195601,0.00011052,2]
[420297326,1775927446701,-268.04804399,0.00011052,2]
[420297327,1775927446713,-300.0,0.00011052,2]
[420297328,1775927446750,-300.0,0.00011052,2]
[420297329,1775927446764,-195.0,0.00011108,2]
[420297330,1775927446806,-195.0,0.00011108,2]
[420297331,1775927446837,-195.0,0.00011108,2]
[420297332,1775927446873,-195.0,0.00011108,2]
[420297333,1775927446901,-195.0,0.00011108,2]
[420297334,1775927446930,-600.0,0.00011108,2]
[420297335,1775927446947,-600.0,0.00011108,2]
[420297336,1775927446971,-250.0,0.00011108,2]
[420297337,1775927446991,-300.0,0.00011108,2]
[420297338,1775927447000,-2104.09963261,0.00011487,2]
[420297339,1775927447010,-150.0,0.000117,2]
[420297340,1775927447028,-150.99,0.00012893,2]
[420297341,1775927447038,-2081.05496409,0.00012893,2]
[420297342,1775927447081,-2918.93503591,0.00012893,2]
[420297343,1775927447094,-770.25,0.00012893,2]
[420297344,1775927447105,-2709.41,0.00012995,2]
[420297345,1775927447118,-250.0,0.00013,2]
[420297346,1775927447135,-171.3958,0.00013,2]
[420297347,1775927447146,-150.29,0.00013162,7]
[420297348,1775927447159,-288.8625059,0.0001322,2]
[420297349,1775927447183,-211.1374941,0.0001322,2]
[420297350,1775927447192,-500.0,0.0001322,2]
[420297351,1775927447217,-150.0,0.00013367,2]
[420297352,1775927447233,-150.0,0.00013367,2]
[420297353,1775927447244,-150.0,0.00013367,2]
[420297354,1775927447269,-150.0,0.00013367,2]
[420297355,1775927447284,-150.0,0.00013367,2]
[420297356,1775927447294,-250.0,0.00013367,2]
[420297357,1775927447314,-500.0,0.00013367,2]
[420297358,1775927447330,-500.0,0.00013367,2]
[420297359,1775927447339,-500.0,0.00013367,2]
[420297360,1775927447374,-500.0,0.00013367,2]
[420297361,1775927447384,-500.0,0.00013367,2]
[420297362,1775927447421,-500.0,0.00013367,2]
[420297363,1775927447430,-500.0,0.00013367,2]
[420297364,1775927447463,-500.0,0.00013367,2]
[420297365,1775927447474,-500.0,0.00013367,2]
[420297366,1775927447499,-500.0,0.00013367,2]
[420297367,1775927447514,-379.15889098,0.00013367,2]
[420297368,1775927447523,-150.0,0.00013367,2]
[420297369,1775927447548,-500.0,0.00013367,2]
[420297370,1775927447560,-500.0,0.00013367,2]
[420297371,1775927447570,-500.0,0.00013367,2]
[420297372,1775927447582,-500.0,0.00013367,2]
[420297373,1775927447602,-500.0,0.00013367,2]
[420297374,1775927447612,-500.0,0.00013367,2]
[420297375,1775927447622,-500.0,0.00013367,2]
[420297376,1775927447637,-500.0,0.00013367,2]
[420297377,1775927447651,-557.34489275,0.00013367,2]
[420297378,1775927447661,-150.0,0.00013367,2]
[420297379,1775927447673,-2457.09,0.00013482,2]
[420297380,1775927447682,-246.05,0.00013514,7]
[420297381,1775927447699,-500.0,0.00013591,2]
[420297382,1775927447709,-500.0,0.00013591,2]
[420297383,1775927447719,-500.0,0.00013591,2]
[420297384,1775927447736,-500.0,0.00013591,2]
[420297385,1775927447752,-509.68889727,0.00013591,2]
[420297386,1775927447769,-3240.0,0.0001365,2]
[420297387,1775927447788,-150.0,0.00013699,2]
[420297388,1775927447807,-150.0,0.00013699,2]
[420297389,1775927447819,-150.0,0.00013699,2]
[420297390,1775927447842,-150.0,0.00013699,2]
[420297391,1775927447862,-150.0,0.00013699,2]
[420297392,1775927447886,-150.0,0.00013699,2]
[420297393,1775927447903,-150.0,0.00013699,2]
[420297394,1775927447926,-150.0,0.00013699,2]
[420297395,1775927447944,-1600.0,0.00013715,2]
[420297396,1775927447955,-150.0,0.00013761,2]
[420297397,1775927447977,-150.0,0.00013761,2]
[420297398,1775927447987,-150.0,0.00013761,2]
[420297399,1775927447997,-150.0,0.00013761,2]
[420297400,1775927448009,-150.0,0.00013761,2]
[420297401,1775927448019,-150.0,0.00013761,2]
[420297402,1775927448029,-150.0,0.00013761,2]
[420297403,1775927448039,-205.16459729,0.00013761,2]
[420297404,1775927448051,-150.0,0.00013761,2]
[420297405,1775927448060,-150.0,0.00013761,2]
[420297406,1775927448073,-185.83107658,0.00013761,2]
[420297407,1775927448083,-250.35,0.00013773,7]
[420297408,1775927448092,-1667.12,0.00013773,2]
[420297409,1775927448104,-174.796,0.00013773,2]
[420297410,1775927448114,-249.92481077,0.00013839,2]
[420297411,1775927448123,-709.11372043,0.00014003,2]
[420297412,1775927448133,-500.0,0.00014003,2]
[420297413,1775927448146,-1163.00354418,0.00014003,2]
[420297414,1775927448155,-500.0,0.00014003,2]
[420297415,1775927448164,-500.0,0.00014003,2]
[420297416,1775927448174,-151.0,0.00014003,2]
[420297417,1775927448190,-500.0,0.00014003,2]
[420297418,1775927448200,-500.0,0.00014003,2]
[420297419,1775927448209,-500.0,0.00014003,2]
[420297420,1775927448218,-500.0,0.00014003,2]
[420297421,1775927448233,-500.0,0.00014003,2]
[420297422,1775927448242,-500.0,0.00014003,2]
[420297423,1775927448252,-500.0,0.00014003,2]
[420297424,1775927448264,-500.0,0.00014003,2]
[420297425,1775927448276,-500.0,0.00014003,2]
[420297426,1775927448287,-500.0,0.00014003,2]
[420297427,1775927448296,-500.0,0.00014003,2]
[420297428,1775927448307,-174.61919141,0.00014003,2]
[420297429,1775927448323,-500.0,0.00014035,2]
[420297430,1775927448333,-500.0,0.00014035,2]
[420297431,1775927448343,-500.0,0.00014035,2]
[420297432,1775927448363,-500.0,0.00014035,2]
[420297433,1775927448373,-500.0,0.00014035,2]
[420297434,1775927448386,-500.0,0.00014035,2]
[420297435,1775927448406,-500.0,0.00014035,2]
[420297436,1775927448422,-150.0,0.00014035,2]
[420297437,1775927448432,-150.0,0.00014035,2]
[420297438,1775927448466,-150.0,0.00014035,2]
[420297439,1775927448475,-150.0,0.00014035,2]
[420297440,1775927448504,-150.0,0.00014035,2]
[420297441,1775927448516,-150.0,0.00014035,2]
[420297442,1775927448527,-1047.0,0.00014035,2]
[420297443,1775927448551,-3525.0,0.00014035,2]
[420297444,1775927448560,-1264.0,0.00014035,2]
[420297445,1775927448571,-926.0,0.00014035,2]
[420297446,1775927448593,-1218.0,0.00014035,2]
[420297447,1775927448602,-2472.0,0.00014035,2]
[420297448,1775927448611,-5709.07503217,0.00014035,2]
[420297449,1775927531502,2543.79,0.0003,120]
[420297450,1775927536935,196.84,0.0003,120]
[420297452,1775927561791,2989.0,0.00030137,120]
[420297453,1775927563773,1651.0,0.0003013,120]
[420297454,1775927564551,211.0,0.0003013,120]
[420297455,1775927565361,1014.0,0.0003013,120]
[420297456,1775927614831,1250.0,0.0003013,120]
[420297457,1775927675484,279.0,0.0003013,120]
[420297458,1775927701476,250.0,0.0003013,120]
[420297459,1775927772370,594.79402139,0.00030136,120]
[420297460,1775927827154,500.0,0.00030136,120]
[420297461,1775927835917,500.0,0.00030136,120]
[420297466,1775928370436,188.10178596,0.00029443,120]
[420297467,1775928391909,500.63,0.00030136,120]
[420297468,1775928470834,2000.0,0.00030136,120]
[420297469,1775928475553,2000.0,0.00030136,120]
[420297470,1775928481906,2000.0,0.00030136,120]
[420297471,1775928487960,2000.0,0.00030136,120]
[420297473,1775928494751,2000.0,0.00030136,120]
[420297478,1775928632180,-250.0,0.00010483,2]
[420297480,1775928632191,-250.0,0.00010494,2]
[420297482,1775928632203,-216.7707529,0.00010498,2]
[420297484,1775928632228,-283.2292471,0.00010498,2]
[420297486,1775928632238,-500.0,0.00010498,2]
[420297488,1775928632247,-281.61954731,0.00010498,2]
[420297490,1775928632256,-300.0,0.00010498,2]
[420297491,1775928632275,-939.38909794,0.00010498,2]
[420297492,1775928632425,-260.61090206,0.00010498,2]
[420297493,1775928632436,-150.0,0.00010498,2]
[420297494,1775928632448,-4589.38909794,0.00010499,2]
[420297495,1775928632465,-2434.79182097,0.00010499,2]
[420297496,1775928632492,-2586.05206249,0.00010499,2]
[420297497,1775928632503,-555.95984743,0.00010499,2]
[420297498,1775928632532,-1159.94357071,0.00010499,2]
[420297499,1775928632543,-2642.63241699,0.00010499,2]
[420297500,1775928632560,-971.91375989,0.00010499,2]
[420297501,1775928632582,-6127.228,0.00010499,2]
[420297505,1775928632625,-994.3940699,0.00010499,2]
[420297507,1775928632637,-985.20374786,0.00010499,2]
[420297522,1775928638890,-856.69387292,0.00010499,2]
[420297523,1775928638917,-69428.78739995,0.00010499,2]
[420297620,1775928640689,-53800.18263295,0.00010499,2]
[420297621,1775928640699,-923.87358244,0.000105,2]
[420297622,1775928640711,-32882.4892,0.000105,2]
[420297623,1775928640728,-9087.8116,0.000105,2]
[420297624,1775928640737,-500.0,0.00010594,2]
[420297625,1775928640763,-151.0,0.00010594,2]
[420297626,1775928640774,-500.0,0.00010594,2]
[420297627,1775928640797,-151.0,0.00010594,2]
[420297628,1775928640807,-500.0,0.00010594,2]
[420297629,1775928640818,-151.0,0.00010594,2]
[420297630,1775928640832,-500.0,0.00010594,2]
[420297631,1775928640854,-151.0,0.00010594,2]
[420297632,1775928640864,-500.0,0.00010594,2]
[420297633,1775928640878,-151.0,0.00010594,2]
[420297634,1775928640891,-500.0,0.00010594,2]
[420297635,1775928640900,-151.0,0.00010594,2]
[420297636,1775928640913,-500.0,0.00010594,2]
[420297637,1775928640923,-151.0,0.00010594,2]
[420297638,1775928640939,-500.0,0.00010594,2]
[420297639,1775928640952,-200.0,0.00010594,2]
[420297640,1775928640961,-151.0,0.00010594,2]
[420297641,1775928640970,-500.0,0.00010594,2]
[420297642,1775928640981,-151.0,0.00010594,2]
[420297643,1775928640993,-500.0,0.00010594,2]
[420297644,1775928641009,-151.0,0.00010594,2]
[420297645,1775928641019,-500.0,0.00010594,2]
[420297646,1775928641028,-151.0,0.00010594,2]
[420297647,1775928641044,-500.0,0.00010594,2]
[420297648,1775928641053,-500.0,0.00010594,2]
[420297649,1775928641064,-500.0,0.00010594,2]
[420297650,1775928641074,-500.0,0.00010594,2]
[420297651,1775928641088,-500.0,0.00010594,2]
[420297652,1775928641096,-500.0,0.00010594,2]
[420297653,1775928641106,-500.0,0.00010594,2]
[420297654,1775928641116,-151.0,0.00010594,2]
[420297655,1775928641127,-500.0,0.00010594,2]
[420297656,1775928641136,-151.0,0.00010594,2]
[420297657,1775928641147,-151.0,0.00010594,2]
[420297658,1775928641163,-500.0,0.00010594,2]
[420297659,1775928641173,-151.0,0.00010594,2]
[420297660,1775928641183,-500.0,0.00010594,2]
[420297661,1775928641195,-151.0,0.00010594,2]
[420297662,1775928641207,-500.0,0.00010594,2]
[420297663,1775928641219,-151.0,0.00010594,2]
[420297664,1775928641229,-500.0,0.00010594,2]
[420297665,1775928641243,-500.0,0.00010594,2]
[420297666,1775928641254,-151.0,0.00010594,2]